bitfinex/quotes_ETHUSD_20250415
["timestamp","ask_amount","ask_price","bid_price","bid_amount"]
[1744732063744,6.196,1613.3,1613.1,7.493898]
[1744732063949,6.196,1613.3,1613.2,6.73815]
[1744732064149,6.196,1613.3,1613.2,0.5393]
[1744732064550,6.196,1613.3,1613.2,6.73815]
[1744732064745,6.196,1613.3,1613.2,0.5393]
[1744732064934,6.196,1613.3,1613.2,6.73815]
[1744732065140,6.196,1613.3,1613.2,7.5414698]
[1744732065538,6.196,1613.3,1613.2,0.5393]
[1744732065744,12.3945,1613.3,1613.1,0.05]
[1744732066039,6.19885,1613.2,1613.1,0.05]
[1744732066279,12.3945,1613.3,1613.1,0.05]
[1744732066645,6.196,1613.3,1613.1,6.2489]
[1744732066843,6.196,1613.3,1613.1,13.12693]
[1744732067175,6.196,1613.3,1613.2,6.19885]
[1744732067374,6.196,1613.3,1613.1,0.05]
[1744732067671,6.19885,1613.2,1613.1,0.05]
[1744732067876,12.39466,1613.3,1613.1,0.05]
[1744732067877,6.196,1613.3,1613.1,0.05]
[1744732068080,12.39377,1613.5,1613.1,6.78845]
[1744732068376,6.196,1613.5,1613.4,6.19809]
[1744732068673,6.03175681,1613.5,1613.4,6.19809]
[1744732069883,6.51897176,1614.1,1613.8,6.19637]
[1744732070174,6.196,1614.1,1613.9,6.19615]
[1744732070376,6.196,1614.1,1613.9,6.19605]
[1744732070543,6.196,1614.1,1613.8,12.3929]
[1744732070744,6.196,1614.1,1613.7,0.5393]
[1744732070745,6.19579,1614.0,1613.7,6.73617]
[1744732070970,6.196,1614.1,1613.7,0.5393]
[1744732071177,6.1967,1613.8,1613.5,6.73689]
[1744732071879,6.19594,1614.0,1613.6,6.19696]
[1744732072742,12.392,1614.0,1613.7,6.19677]
[1744732073140,6.19594,1614.0,1613.7,6.19677]
[1744732073344,12.39149,1614.1,1613.7,7.436143]
[1744732073567,6.19579,1614.0,1613.7,6.19677]
[1744732073767,6.19579,1614.0,1613.7,12.39355]
[1744732074075,12.39183,1614.0,1613.6,6.19723]
[1744732074374,12.39183,1614.0,1613.6,12.39446]
[1744732074578,6.19579,1614.0,1613.7,6.19686]
[1744732075181,12.39148,1614.1,1613.7,6.19681]
[1744732075478,12.39148,1614.1,1613.7,12.39363]
[1744732075774,12.39148,1614.1,1613.8,6.19639]
[1744732075979,18.58704,1614.1,1613.7,6.19684]
[1744732076286,18.58704,1614.1,1613.7,12.39368]
[1744732076479,12.39148,1614.1,1613.8,6.19655]
[1744732076780,6.19581,1614.0,1613.7,7.5655456]
[1744732077075,12.39175,1614.0,1613.7,7.5655456]
[1744732077279,12.39178,1614.0,1613.6,12.39452]
[1744732077449,6.19581,1614.0,1613.7,6.19692]
[1744732077849,6.19581,1614.0,1613.7,6.19682]
[1744732078290,6.19655,1613.9,1613.5,6.73685]
[1744732078446,6.19674,1613.8,1613.5,6.19755]
[1744732078647,12.39095,1613.7,1613.4,6.19803]
[1744732078846,12.39095,1613.7,1613.4,12.39598]
[1744732079149,12.39095,1613.7,1613.4,6.19795]
[1744732079345,18.58808,1613.7,1613.3,6.73776]
[1744732079550,12.39095,1613.7,1613.4,6.198]
[1744732079966,14.249707,1613.7,1613.3,6.73776]
[1744732080180,6.19778,1613.5,1613.3,0.5393]
[1744732080463,6.19741,1613.6,1613.1,0.5893]
[1744732080804,6.19839,1613.4,1613.1,0.5893]
[1744732080982,6.19885,1613.2,1613.1,0.05]
[1744732081971,12.35174875,1613.2,1613.1,0.05]
[1744732082188,16.16414875,1613.2,1613.1,0.05]
[1744732082560,6.20109,1612.7,1612.4,0.5393]
[1744732082760,6.194,1612.6,1612.4,6.74123]
[1744732083068,6.194,1612.7,1612.6,6.20109]
[1744732083273,6.194,1612.8,1612.7,6.20078]
[1744732084515,0.818,1613.3,1612.7,0.60130464]
[1744732084660,6.195,1613.2,1613.1,12.93749]
[1744732084862,6.195,1613.5,1613.4,6.19809]
[1744732085158,6.195,1613.8,1613.5,6.19742]
[1744732085610,6.195,1613.8,1613.6,6.19715]
[1744732085978,6.195,1613.8,1613.7,6.19693]
[1744732086171,4.09524441,1614.2,1613.8,0.5393]
[1744732086366,6.195,1614.5,1614.2,6.19491]
[1744732086561,12.38903,1614.5,1614.2,6.19491]
[1744732086886,6.19461,1614.4,1614.0,6.19561]
[1744732087060,6.19479,1614.3,1614.0,6.19561]
[1744732087265,6.19461,1614.4,1614.0,6.19561]
[1744732087466,12.38969,1614.3,1613.9,6.19613]
[1744732087679,18.58369,1614.3,1613.9,12.39213]
[1744732088004,12.38884,1614.3,1614.0,6.19578]
[1744732088188,6.194,1614.3,1614.0,12.39137]
[1744732088977,6.194,1614.3,1614.0,6.19559]
[1744732089371,6.19518,1614.2,1613.8,7.409422]
[1744732089571,6.1956,1614.1,1613.8,0.5393]
[1744732089784,12.39138,1614.1,1613.8,0.5393]
[1744732089982,4.40572337,1615.2,1615.1,6.19156]
[1744732090190,4.09524441,1615.2,1615.1,6.74156]
[1744732090379,0.05,1615.4,1615.3,6.1908]
[1744732090987,12.78696131,1615.4,1615.1,0.5393]
[1744732091315,6.509,1615.4,1615.1,0.5393]
[1744732091508,6.459,1615.3,1615.0,12.38374]
[1744732091805,10.17469588,1615.3,1615.0,6.1918]
[1744732092003,4.73316547,1615.2,1614.9,7.02242]
[1744732092205,4.73316547,1615.2,1614.7,6.19294]
[1744732092394,4.01746959,1615.2,1614.6,13.15992]
[1744732092709,6.457,1615.1,1614.9,6.19198]
[1744732092875,1.01746959,1615.2,1614.9,6.19198]
[1744732093076,6.457,1615.1,1614.9,6.19198]
[1744732093304,6.457,1615.1,1614.9,12.38411]
[1744732093493,0.855,1615.4,1615.1,6.19133]
[1744732093693,6.457,1615.3,1615.1,6.19133]
[1744732093897,0.855,1615.4,1615.1,6.19133]
[1744732094096,6.457,1615.2,1615.1,6.19133]
[1744732094472,7.1027,1615.2,1615.0,6.19194]
[1744732094672,7.1027,1615.2,1614.9,12.38462]
[1744732095677,7.1027,1615.2,1614.6,6.96632]
[1744732095992,0.55,1615.1,1614.5,6.19381]
[1744732096194,7.01815,1615.0,1614.5,6.19374]
[1744732096498,0.701815,1614.9,1614.5,6.19386]
[1744732096673,6.456,1614.8,1614.7,12.38572]
[1744732097073,6.456,1614.8,1614.7,6.19281]
[1744732098005,1.4719,1615.2,1614.7,6.1931]
[1744732098208,0.6457,1615.2,1615.1,6.19156]
[1744732098375,6.456,1615.2,1615.1,6.19156]
[1744732099111,6.456,1615.3,1615.2,6.1911]
[1744732099306,6.456,1615.3,1615.1,6.19139]
[1744732099480,6.456,1615.3,1615.0,12.38371]
[1744732099686,0.6456,1615.2,1615.1,6.19154]
[1744732099887,6.456,1615.3,1615.1,6.19154]
[1744732100383,6.456,1615.3,1615.2,6.19118]
[1744732101711,0.05,1615.4,1615.3,6.1908]
[1744732102005,6.505,1615.4,1615.3,6.1908]
[1744732102403,0.05,1615.4,1615.3,6.1908]
[1744732102575,6.505,1615.4,1615.3,6.1908]
[1744732102983,6.505,1615.4,1615.2,6.19118]
[1744732103182,11.9891,1615.4,1615.2,12.38224]
[1744732103612,11.9891,1615.4,1615.2,6.19106]
[1744732103829,11.9891,1615.4,1615.1,12.3829]
[1744732104005,11.9891,1615.4,1615.3,6.1908]
[1744732104006,6.505,1615.4,1615.3,6.1908]
[1744732105079,6.505,1615.4,1615.2,12.38186]
[1744732105713,6.505,1615.4,1615.3,6.1908]
[1744732105915,0.05,1615.4,1615.3,6.9575]
[1744732106221,0.05,1615.4,1615.3,11.95334073]
[1744732106381,6.454,1615.7,1615.6,6.18965]
[1744732106586,6.454,1615.7,1615.6,9.18965]
[1744732106814,49.128,1616.2,1616.0,12.37598]
[1744732107018,6.454,1616.1,1616.0,6.18799]
[1744732107202,0.05,1616.4,1616.0,0.7533]
[1744732107518,6.18714,1616.3,1616.0,12.37593]
[1744732107914,6.18724,1616.3,1615.9,6.18844]
[1744732108096,12.37448,1616.3,1615.9,12.37679]
[1744732108298,6.18724,1616.3,1616.0,12.3759]
[1744732108620,6.18716,1616.3,1616.0,6.18804]
[1744732108914,8.1455545,1616.3,1616.0,6.188]
[1744732109500,8.1455545,1616.3,1616.0,6.18799]
[1744732109898,14.3327345,1616.3,1616.0,6.18799]
[1744732110207,8.1454645,1616.3,1615.9,6.18836]
[1744732110410,6.18707,1616.3,1616.0,6.188]
[1744732110788,7.210195,1616.4,1615.9,6.18836]
[1744732110989,6.18742,1616.2,1615.9,6.18836]
[1744732111418,12.37466,1616.3,1615.9,12.37673]
[1744732111728,13.396855,1616.4,1616.1,6.18763]
[1744732111888,19.583595,1616.4,1616.1,6.18763]
[1744732112090,13.129595,1616.4,1616.0,12.37582]
[1744732112293,6.502,1616.4,1616.2,6.99908]
[1744732112488,6.502,1616.4,1616.1,1.237549]
[1744732112489,12.68858,1616.4,1616.1,7.425149]
[1744732112690,0.05,1616.4,1616.2,6.18723]
[1744732112915,6.452,1616.3,1616.2,6.18723]
[1744732113422,6.452,1616.3,1616.0,6.18807]
[1744732113597,12.63909,1616.3,1616.0,12.37604]
[1744732113801,6.18773,1616.1,1615.4,0.7835]
[1744732114111,6.18968,1615.6,1615.3,6.19068]
[1744732114295,12.64103,1615.5,1615.2,6.97462]
[1744732114501,6.451,1615.5,1615.3,6.19078]
[1744732114825,6.451,1615.5,1615.2,14.48221]
[1744732115021,12.64119,1615.5,1615.1,6.19143]
[1744732115791,12.64119,1615.5,1615.1,12.38286]
[1744732116128,12.64119,1615.5,1615.2,6.19115]
[1744732116286,18.83142,1615.5,1615.2,6.19115]
[1744732116693,12.64119,1615.5,1615.2,6.19115]
[1744732117421,18.8314,1615.5,1615.2,6.19115]
[1744732117626,18.8314,1615.5,1615.1,6.19143]
[1744732118428,6.451,1615.5,1615.0,6.19186]
[1744732118634,6.19076,1615.4,1615.1,6.19155]
[1744732119302,18.83129,1615.5,1615.1,12.38299]
[1744732119833,12.6411,1615.5,1615.1,12.38299]
[1744732120130,12.6411,1615.5,1615.2,6.19102]
[1744732120299,18.83136,1615.5,1615.1,6.1915]
[1744732120500,12.6411,1615.5,1615.1,6.81684114]
[1744732120833,6.19054,1615.4,1615.1,12.383]
[1744732121399,6.19054,1615.4,1615.1,6.1915]
[1744732122045,18.8313,1615.5,1615.2,6.19117]
[1744732122231,18.8313,1615.5,1615.1,6.19143]
[1744732122400,18.83152,1615.5,1615.1,12.38289]
[1744732122603,12.64111,1615.5,1615.2,6.19094]
[1744732122901,6.451,1615.5,1615.1,7.429819]
[1744732123157,6.19194,1615.1,1614.9,0.7875]
[1744732123445,6.9796,1615.3,1614.9,6.9797]
[1744732123446,6.19131,1615.2,1614.9,6.9797]
[1744732123812,6.391,1615.1,1614.9,6.1922]
[1744732123997,12.58258,1615.1,1614.8,6.1926]
[1744732124204,6.391,1615.1,1614.4,0.7909]
[1744732124399,6.19215,1615.0,1614.6,6.19336]
[1744732124595,6.19215,1615.0,1614.0,0.7909]
[1744732124596,0.7924,1614.9,1614.0,0.7909]
[1744732124823,6.19288,1614.8,1614.5,6.19386]
[1744732125035,6.391,1614.7,1614.5,6.19386]
[1744732125230,6.391,1614.7,1614.4,12.38832]
[1744732125426,6.391,1614.7,1614.5,6.19384]
[1744732125804,18.77763,1614.7,1614.4,7.433072]
[1744732126131,12.58426,1614.7,1614.4,1.238832]
[1744732126346,6.391,1614.7,1614.4,7.433022]
[1744732126527,6.391,1614.7,1614.4,13.627122]
[1744732126723,6.391,1614.7,1614.5,6.19366]
[1744732126917,6.391,1614.7,1614.4,6.19408]
[1744732127117,12.58412,1614.7,1614.4,6.813488]
[1744732127317,18.77745,1614.7,1614.4,6.813488]
[1744732127843,12.38745,1614.6,1614.2,6.19489]
[1744732128038,6.19361,1614.6,1614.2,12.38978]
[1744732128339,12.3873,1614.6,1614.2,12.38978]
[1744732128533,6.19441,1614.4,1614.1,6.19533]
[1744732128703,6.392,1614.3,1614.1,6.893953]
[1744732128908,6.392,1614.3,1614.0,6.98665]
[1744732129121,12.58676,1614.3,1614.0,6.19575]
[1744732129414,6.392,1614.3,1614.0,6.19567]
[1744732129711,12.58678,1614.3,1614.0,6.19567]
[1744732129931,6.19519,1614.2,1613.8,6.99748]
[1744732130162,6.19519,1614.2,1613.6,6.19699]
[1744732130163,0.8006,1614.1,1613.6,6.19699]
[1744732130312,6.1964,1613.9,1613.5,6.99867]
[1744732130504,12.58957,1613.8,1613.5,6.99867]
[1744732130730,6.393,1613.8,1613.1,14.49668775]
[1744732130911,0.8006,1613.7,1613.2,1.44966878]
[1744732131110,0.8006,1613.7,1613.4,6.1978]
[1744732131446,0.8006,1613.7,1613.4,12.39577]
[1744732131935,6.99761,1613.7,1613.4,6.19808]
[1744732132139,6.99761,1613.7,1613.3,6.19832]
[1744732132346,6.19791,1613.5,1613.1,0.8511]
[1744732132542,12.59214,1613.4,1613.1,6.24912]
[1744732132842,12.59214,1613.4,1613.1,12.44824]
[1744732133012,6.394,1613.4,1613.1,1.294824]
[1744732133212,0.8006,1613.7,1613.2,6.19873]
[1744732133429,6.394,1613.6,1613.5,6.1977]
[1744732134853,6.394,1613.6,1613.4,12.39584]
[1744732135157,6.394,1613.6,1613.5,6.1977]
[1744732137651,6.396,1613.9,1613.8,6.19641]
[1744732138057,6.396,1613.9,1613.8,7.516966]
[1744732138235,6.396,1613.9,1613.8,10.57893042]
[1744732138460,6.396,1614.2,1614.1,6.19532]
[1744732139372,6.396,1614.8,1614.6,6.19348]
[1744732139560,6.396,1614.8,1614.5,6.19378]
[1744732139961,6.19321,1614.7,1614.4,6.19411]
[1744732140181,6.396,1614.8,1614.5,6.19378]
[1744732140368,6.396,1614.8,1614.6,6.19347]
[1744732140555,6.396,1614.8,1614.5,6.19378]
[1744732140877,12.58888,1614.8,1614.5,6.19378]
[1744732141083,6.99613,1614.7,1614.3,6.19433]
[1744732141241,6.99613,1614.7,1614.4,6.19422]
[1744732141439,6.396,1614.8,1614.7,6.1931]
[1744732141639,6.396,1614.8,1614.6,6.19331]
[1744732142077,12.58895,1614.8,1614.4,6.19424]
[1744732142246,12.58895,1614.8,1614.5,6.19381]
[1744732142247,18.78187,1614.8,1614.5,6.19381]
[1744732142447,12.58892,1614.8,1614.4,6.19411]
[1744732142643,12.3865,1614.7,1614.4,6.19411]
[1744732142843,12.38647,1614.7,1614.4,6.19411]
[1744732143040,12.38644,1614.7,1614.4,6.19411]
[1744732143305,6.19364,1614.6,1614.1,3.8144]
[1744732143478,6.19447,1614.4,1614.1,6.19532]
[1744732143805,6.395,1614.4,1614.3,6.19463]
[1744732144005,6.395,1614.4,1614.2,12.38977]
[1744732144196,6.395,1614.4,1614.3,6.19463]
[1744732144767,6.395,1614.4,1614.1,12.39056]
[1744732144980,6.395,1614.7,1614.3,0.8165]
[1744732145176,12.58811,1614.7,1614.3,7.01111]
[1744732145384,6.1935,1614.6,1614.2,12.39]
[1744732145557,12.58841,1614.7,1614.3,6.19446]
[1744732145904,6.395,1614.7,1614.4,12.38828]
[1744732146053,6.19361,1614.6,1614.3,6.19459]
[1744732146256,18.78142,1614.7,1614.3,6.19452]
[1744732146483,6.395,1614.7,1614.5,6.19378]
[1744732147488,12.58826,1614.7,1614.4,6.19424]
[1744732147655,12.58826,1614.7,1614.4,12.38848]
[1744732147989,6.395,1614.7,1614.6,6.19348]
[1744732148290,6.395,1614.7,1614.5,12.38742]
[1744732148587,6.395,1614.7,1614.5,6.19368]
[1744732148791,12.58812,1614.7,1614.4,6.19413]
[1744732149008,12.58812,1614.7,1614.3,6.19454]
[1744732149190,2.039012,1614.6,1614.1,6.19531]
[1744732149392,6.19582,1614.0,1613.7,6.1968]
[1744732149597,6.395,1613.9,1613.6,6.96622]
[1744732149792,6.395,1613.9,1613.6,6.19716]
[1744732150104,6.395,1613.9,1613.8,6.19655]
[1744732150275,6.395,1613.9,1613.6,13.014336]
[1744732150476,6.395,1613.9,1613.6,6.817026]
[1744732150676,12.59131,1613.9,1613.6,6.817026]
[1744732151077,18.78769,1613.9,1613.6,0.619716]
[1744732151291,12.59131,1613.9,1613.5,6.1977]
[1744732151491,18.78769,1613.9,1613.5,12.3954]
[1744732151692,12.59131,1613.9,1613.5,12.3954]
[1744732151903,12.59131,1613.9,1613.5,6.1977]
[1744732152101,12.59131,1613.9,1613.5,12.3954]
[1744732152273,18.78767,1613.9,1613.5,12.3954]
[1744732152481,18.78767,1613.9,1613.5,13.71184]
[1744732152692,12.59131,1613.9,1613.5,13.71184]
[1744732153291,12.59131,1613.9,1613.6,6.19732]
[1744732154275,12.59131,1613.9,1613.5,7.51414]
[1744732154487,18.78767,1613.9,1613.5,7.51414]
[1744732155412,6.395,1613.9,1613.6,6.19727]
[1744732155587,12.59133,1613.9,1613.6,6.19727]
[1744732156275,12.59133,1613.9,1613.5,7.51407]
[1744732156503,6.19658,1613.8,1613.5,7.514]
[1744732156714,12.59133,1613.9,1613.6,6.1971]
[1744732157083,12.59133,1613.9,1613.6,12.39428]
[1744732157282,12.59133,1613.9,1613.6,6.1971]
[1744732157787,6.395,1613.9,1613.6,12.3943]
[1744732158090,12.59128,1613.9,1613.6,7.568174]
[1744732158290,6.395,1613.9,1613.6,7.568334]
[1744732158510,6.395,1613.9,1613.7,12.39356]
[1744732158718,6.05,1614.1,1614.0,6.19578]
[1744732159099,6.05,1614.1,1613.9,6.19617]
[1744732159302,6.05,1614.1,1613.8,13.17738]
[1744732159501,67.0723,1614.2,1613.8,13.17736]
[1744732159736,60.87706,1614.2,1613.8,14.495096]
[1744732159933,54.682,1614.2,1613.9,6.19612]
[1744732160124,54.682,1614.2,1614.0,6.19543]
[1744732160305,54.682,1614.2,1614.0,12.39108]
[1744732160502,54.682,1614.2,1614.0,13.630188]
[1744732160703,54.682,1614.2,1614.0,7.434538]
[1744732160902,54.682,1614.2,1614.0,13.630218]
[1744732161102,54.682,1614.2,1614.1,6.1954]
[1744732161337,6.369,1614.2,1614.1,6.1954]
[1744732161536,6.19317,1614.7,1614.1,8.9777228]
[1744732161859,7.184,1615.1,1614.7,6.1929]
[1744732162004,7.184,1615.1,1614.9,6.19217]
[1744732162571,0.7902,1615.3,1615.1,6.19151]
[1744732162739,6.369,1615.4,1615.1,12.38294]
[1744732162919,6.369,1615.4,1615.0,6.19188]
[1744732163119,6.19092,1615.3,1614.9,6.19226]
[1744732163452,7.08492,1615.4,1614.7,3.7681]
[1744732163658,6.369,1615.4,1615.1,12.38293]
[1744732163954,6.369,1615.4,1615.0,6.19187]
[1744732164131,6.19106,1615.3,1614.9,6.19225]
[1744732164452,6.98198,1615.1,1614.8,6.19258]
[1744732164647,13.17376,1615.1,1614.7,6.19308]
[1744732164848,12.55899,1615.0,1614.7,13.005368]
[1744732165050,6.19248,1614.9,1614.5,13.16712]
[1744732165255,6.19233,1614.9,1614.4,6.19395]
[1744732165536,6.1929,1614.8,1614.4,12.38808]
[1744732165761,6.367,1615.0,1614.3,0.7796]
[1744732165762,6.19239,1614.9,1614.3,0.7796]
[1744732165912,6.367,1615.0,1614.7,6.19304]
[1744732166223,12.559,1615.0,1614.6,6.1934]
[1744732166410,6.19233,1614.9,1614.6,6.1934]
[1744732167013,6.19273,1614.8,1614.5,6.19379]
[1744732167619,6.19273,1614.8,1614.4,12.38846]
[1744732167834,12.38581,1614.8,1614.4,12.38834]
[1744732168030,6.19273,1614.8,1614.4,12.38834]
[1744732168362,12.38566,1614.8,1614.4,13.705134]
[1744732168526,6.19273,1614.8,1614.4,13.705134]
[1744732168857,6.19316,1614.7,1614.4,13.704994]
[1744732169076,6.367,1614.6,1614.4,6.1941]
[1744732169613,12.38645,1614.7,1614.3,6.19457]
[1744732169919,0.7626,1615.0,1614.7,12.3859]
[1744732170356,6.95471,1615.0,1614.7,6.19292]
[1744732170526,6.367,1614.9,1614.5,6.19371]
[1744732170719,12.55941,1614.9,1614.5,6.19371]
[1744732170915,6.367,1614.9,1614.6,6.19333]
[1744732171117,6.367,1614.9,1614.8,6.19271]
[1744732172736,7.1779,1615.2,1615.0,6.19189]
[1744732172918,6.367,1615.2,1615.0,12.38378]
[1744732173447,6.367,1615.2,1615.1,6.19156]
[1744732174428,6.367,1615.2,1615.1,7.4299]
[1744732175934,6.366,1615.5,1615.3,12.3816]
[1744732176435,6.366,1615.5,1615.2,6.19115]
[1744732176656,12.55613,1615.5,1615.2,12.38221]
[1744732176847,6.366,1615.5,1615.3,6.19075]
[1744732177053,6.366,1615.5,1615.2,6.19107]
[1744732177234,6.366,1615.5,1615.4,6.19041]
[1744732179970,48.325,1615.6,1615.4,12.38082]
[1744732180133,48.325,1615.6,1615.5,6.19003]
[1744732180530,48.325,1615.6,1615.4,12.3807]
[1744732182464,48.325,1615.6,1615.5,6.19003]
[1744732183336,48.325,1615.6,1615.5,7.428062]
[1744732183747,48.325,1615.6,1615.5,1.238032]
[1744732184069,6.18945,1615.7,1615.4,12.38055]
[1744732184372,7.1379,1615.8,1615.6,6.18962]
[1744732185148,13.3268,1615.8,1615.5,12.37953]
[1744732185336,6.9618,1615.8,1615.5,12.37953]
[1744732185532,0.7729,1615.8,1615.6,12.3792]
[1744732185771,12.37736,1615.9,1615.6,7.42752]
[1744732185978,6.18868,1615.9,1615.6,7.42752]
[1744732186176,6.18868,1615.9,1615.5,6.18993]
[1744732186177,6.18948,1615.7,1615.4,6.96118]
[1744732186470,12.38644,1615.7,1615.4,13.15149]
[1744732186844,6.197,1615.7,1615.4,13.15149]
[1744732187037,6.197,1615.7,1615.5,6.19]
[1744732187841,6.197,1615.7,1615.5,6.1899]
[1744732188139,6.197,1615.7,1615.6,6.18965]
[1744732191041,6.197,1616.0,1615.9,6.1885]
[1744732191243,6.197,1616.0,1615.8,6.18885]
[1744732191244,55.262,1616.3,1616.1,6.18755]
[1744732192061,6.18747,1616.2,1615.9,6.18825]
[1744732192260,6.18747,1616.2,1615.9,13.696342]
[1744732192573,55.262,1616.3,1616.1,6.18743]
[1744732193175,55.262,1616.3,1616.1,12.37505]
[1744732193475,55.262,1616.3,1616.1,6.18743]
[1744732193643,0.775,1616.3,1616.1,6.806173]
[1744732193844,0.05,1616.4,1616.3,6.18697]
[1744732194043,0.05,1616.4,1616.3,9.18697]
[1744732194248,0.05,1616.4,1616.3,9.24882983]
[1744732194446,0.05,1616.4,1616.3,8.42589398]
[1744732194666,7.00567,1616.4,1616.1,0.618743]
[1744732194862,7.00567,1616.4,1616.0,12.37599]
[1744732195271,7.00567,1616.4,1616.1,6.18764]
[1744732195472,0.8189,1616.4,1615.9,8.281712]
[1744732195683,0.05,1616.4,1616.2,12.37448]
[1744732196084,0.05,1616.4,1616.1,6.18763]
[1744732196282,6.23673,1616.4,1616.1,6.18763]
[1744732196483,6.23673,1616.4,1616.0,6.18798]
[1744732196651,6.23673,1616.4,1616.1,6.18755]
[1744732196852,6.23673,1616.4,1616.1,12.37515]
[1744732197153,0.05,1616.4,1616.2,12.37416]
[1744732197363,0.05,1616.4,1616.3,6.18697]
[1744732198182,0.05,1616.4,1616.3,7.05813424]
[1744732198350,0.05,1616.4,1616.3,9.00137066]
[1744732198754,0.05,1616.4,1616.3,8.93950642]
[1744732199067,0.05,1616.4,1616.3,11.93950642]
[1744732199686,0.05,1616.4,1616.3,1.94323642]
[1744732199992,0.05,1616.4,1616.3,6.18697]
[1744732200151,0.05,1616.4,1616.2,12.37426]
[1744732200347,0.05,1616.4,1616.3,6.18697]
[1744732200551,0.05,1616.4,1616.3,9.2488363]
[1744732200765,1e-05,1616.4,1616.3,10.6081363]
[1744732200966,1e-05,1616.4,1616.3,12.8902967]
[1744732201166,1e-05,1616.4,1616.3,9.8902967]
[1744732201366,1e-05,1616.4,1616.3,9.0809967]
[1744732201563,1e-05,1616.4,1616.3,9.14285878]
[1744732203580,1e-05,1616.4,1616.3,9.0809967]
[1744732205189,1e-05,1616.4,1616.3,9.1428576]
[1744732205560,1e-05,1616.4,1616.3,6.18697]
[1744732206282,1e-05,1616.4,1616.1,12.37508]
[1744732206579,1e-05,1616.4,1616.2,6.18732]
[1744732206959,6.94059,1616.3,1616.0,13.2043202]
[1744732207377,6.94059,1616.3,1616.0,7.0162202]
[1744732207696,12.38036,1616.2,1615.9,7.508182]
[1744732207854,12.38036,1616.2,1615.9,12.37685]
[1744732208058,12.38036,1616.2,1615.9,12.37678]
[1744732208259,6.18793,1616.1,1615.7,6.18912]
[1744732208582,6.18813,1616.0,1615.7,12.37825]
[1744732208780,0.7598,1616.0,1615.8,6.18876]
[1744732209600,7.41246373,1616.0,1615.5,0.8061]
[1744732209902,1.454563,1616.0,1615.4,6.25230648]
[1744732210061,0.7598,1616.0,1615.7,6.18906]
[1744732210267,0.7598,1616.0,1615.8,6.18867]
[1744732210476,18.43056,1616.2,1615.9,6.1885]
[1744732210477,24.61808,1616.2,1615.9,6.1885]
[1744732210700,19.39048,1616.2,1615.8,12.37758]
[1744732210864,19.39048,1616.2,1615.8,13.615338]
[1744732211060,13.20292,1616.2,1615.9,6.18849]
[1744732211289,19.39049,1616.2,1615.9,6.18849]
[1744732211490,19.39049,1616.2,1615.8,13.615338]
[1744732211691,6.18779,1616.1,1615.8,7.426548]
[1744732212206,7.0154,1616.2,1615.9,6.9310348]
[1744732212410,13.2029,1616.2,1615.6,3.7726]
[1744732212575,6.18784,1616.1,1615.8,6.18875]
[1744732212908,6.18784,1616.1,1615.7,6.18898]
[1744732212909,6.18812,1616.0,1615.7,12.37813]
[1744732213101,12.37578,1616.1,1615.8,6.18888]
[1744732213303,6.18816,1616.0,1615.6,9.18954]
[1744732213496,6.18815,1616.0,1615.6,6.1895]
[1744732213696,12.37644,1616.0,1615.7,6.18926]
[1744732213877,12.37645,1616.0,1615.7,6.18926]
[1744732214073,6.18776,1616.1,1615.7,6.18914]
[1744732214280,7.0154,1616.2,1615.9,6.18827]
[1744732214606,13.20305,1616.2,1615.9,6.18827]
[1744732214783,13.203,1616.2,1615.9,6.18827]
[1744732215109,0.4588405,1616.4,1615.9,6.18827]
[1744732215110,1e-05,1616.4,1616.2,6.1871]
[1744732215908,1e-05,1616.4,1616.1,6.18769]
[1744732216083,6.941,1616.3,1616.0,6.1881]
[1744732216489,6.941,1616.3,1616.0,6.18799]
[1744732216803,6.941,1616.3,1616.0,12.37599]
[1744732217308,6.941,1616.3,1616.0,6.18799]
[1744732217607,6.18774,1616.1,1615.8,6.18875]
[1744732217807,12.37561,1616.1,1615.8,6.18875]
[1744732218010,12.38021,1616.0,1615.7,6.18921]
[1744732218378,6.18864,1615.9,1615.6,6.18952]
[1744732218596,13.18316,1616.0,1615.5,6.18993]
[1744732218597,6.189,1615.8,1615.5,6.18993]
[1744732218798,6.189,1615.8,1615.5,12.998843]
[1744732218998,12.37729,1615.9,1615.5,6.808913]
[1744732219200,6.1885,1615.9,1615.6,6.18953]
[1744732219403,6.1885,1615.9,1615.5,12.37979]
[1744732219702,6.18936,1615.7,1615.3,6.97891]
[1744732219903,13.17576,1615.6,1615.2,6.19097]
[1744732220212,6.9858,1615.6,1615.4,6.19027]
[1744732220378,6.9858,1615.6,1615.3,6.19069]
[1744732220582,6.9858,1615.6,1615.1,9.9597]
[1744732220583,6.19016,1615.5,1615.1,6.95957]
[1744732220889,6.9858,1615.6,1615.2,6.19104]
[1744732221184,13.17559,1615.6,1615.2,6.19104]
[1744732221383,6.9858,1615.6,1615.1,0.83010426]
[1744732221584,6.9858,1615.6,1615.4,6.19025]
[1744732222315,6.9858,1615.6,1615.4,12.38055]
[1744732222516,6.9858,1615.6,1615.4,6.19025]